bitfinex/quotes_ETHUSD_20251017
["timestamp","ask_amount","ask_price","bid_price","bid_amount"]
[1760698494563,0.221,3733.7,3731.8,0.1346]
[1760698494735,2.67838011,3733.6,3731.8,1.8626]
[1760698494940,2.67852403,3733.4,3731.8,0.001]
[1760698495170,0.28993801,3733.5,3731.8,0.001]
[1760698495339,0.28993801,3733.5,3731.9,1.728]
[1760698495539,0.221,3733.7,3731.8,0.001]
[1760698495741,0.26770881,3733.7,3731.8,0.001]
[1760698496252,0.42029646,3733.3,3731.8,0.001]
[1760698496543,0.42029646,3733.3,3731.9,2.67959312]
[1760698496740,0.42029646,3733.3,3732.0,0.02679528]
[1760698496969,0.42029646,3733.3,3731.9,1.728]
[1760698497190,0.42029646,3733.3,3731.8,0.001]
[1760698497835,2.67882001,3733.0,3731.8,0.001]
[1760698498039,2.67879556,3733.1,3731.8,0.001]
[1760698498240,0.221,3732.9,3731.8,0.001]
[1760698498580,0.42033305,3732.8,3731.8,0.001]
[1760698498762,0.33202199,3732.7,3731.8,0.001]
[1760698499147,0.42033305,3732.8,3731.8,0.001]
[1760698499365,2.67923037,3732.5,3731.8,0.001]
[1760698499540,0.42033305,3732.8,3731.8,0.001]
[1760698499744,0.26771815,3732.9,3731.8,0.001]
[1760698500052,0.42036123,3732.6,3731.8,0.001]
[1760698501271,0.30993219,3732.5,3731.8,0.001]
[1760698501482,0.42036123,3732.6,3731.8,0.001]
[1760698501862,0.221,3732.9,3731.8,0.001]
[1760698502273,2.89990036,3732.9,3731.8,0.001]
[1760698502465,0.221,3732.9,3731.8,0.001]
[1760698502670,0.28998775,3732.8,3731.8,0.001]
[1760698502851,2.67898201,3732.8,3731.8,0.001]
[1760698503052,2.89990227,3732.9,3731.8,0.001]
[1760698503354,2.89989,3732.9,3731.8,0.001]
[1760698503564,0.221,3732.9,3731.9,2.6796002]
[1760698503850,0.221,3732.9,3731.9,0.53604147]
[1760698504083,0.221,3732.9,3731.8,0.001]
[1760698504406,2.89988607,3732.9,3731.8,0.001]
[1760698504579,0.221,3732.9,3731.8,0.001]
[1760698504797,2.67895413,3732.8,3731.8,0.001]
[1760698505085,0.2202,3732.9,3731.8,0.001]
[1760698505283,2.6791021,3732.6,3731.8,0.001]
[1760698505504,0.26791021,3732.5,3731.8,0.001]
[1760698505677,2.67900614,3732.8,3731.8,0.001]
[1760698505991,0.2202,3732.9,3731.8,0.001]
[1760698506298,2.89910127,3732.9,3731.8,0.001]
[1760698506474,0.2202,3732.9,3731.8,0.001]
[1760698506678,0.42035402,3732.7,3731.8,0.001]
[1760698506856,0.33194399,3732.6,3731.8,0.001]
[1760698507188,0.2202,3732.9,3731.8,0.001]
[1760698507552,2.67936265,3732.3,3731.8,0.001]
[1760698507749,2.67947514,3732.1,3731.8,0.001]
[1760698507972,2.67941923,3732.2,3731.8,0.001]
[1760698508386,2.67945756,3732.1,3731.8,0.001]
[1760698508595,3.21533472,3732.1,3731.8,0.001]
[1760698508989,2.6796002,3731.9,3731.8,0.001]
[1760698509513,0.53587716,3732.1,3731.8,0.001]
[1760698509796,2.67939141,3732.2,3731.8,0.001]
[1760698510007,0.04672036,3732.7,3731.8,0.001]
[1760698511009,0.221,3734.0,3731.9,0.4711]
[1760698511299,0.04671292,3733.4,3731.8,0.001]
[1760698511499,2.67874772,3733.1,3731.8,0.001]
[1760698511701,0.04671292,3733.4,3731.8,0.001]
[1760698512013,0.2197,3731.9,3731.8,0.001]
[1760698512371,2.8993002,3731.9,3731.8,0.001]
[1760698512781,0.2197,3731.9,3731.8,0.001]
[1760698513109,2.8993002,3731.9,3731.8,0.001]
[1760698514102,4.6273002,3731.9,3731.8,0.001]
[1760698515198,0.2197,3731.9,3731.8,0.001]
[1760698515609,19.83798145,3731.9,3731.8,0.001]
[1760698516309,21.56598145,3731.9,3731.8,0.001]
[1760698516516,24.85454145,3731.9,3731.8,0.001]
[1760698517080,24.85454145,3731.9,3731.4,0.001]
[1760698517081,2.67988744,3731.5,3731.4,0.001]
[1760698517273,3.38865613,3731.5,3731.4,0.001]
[1760698517585,3.55855613,3731.5,3731.4,0.001]
[1760698517798,3.73871833,3731.5,3731.4,0.001]
[1760698517995,7.48604833,3731.5,3731.4,0.001]
[1760698518204,7.48604833,3731.5,3729.5,0.2259]
[1760698518205,2.68101531,3730.0,3729.5,0.2259]
[1760698518385,0.6336,3731.4,3729.4,0.4711]
[1760698518386,2.68052646,3730.7,3729.4,0.4711]
[1760698518570,2.68052646,3730.7,3729.2,0.2259]
[1760698518571,0.2196,3730.6,3729.2,0.2259]
[1760698518917,0.1726,3730.5,3729.2,0.697]
[1760698519210,2.68102371,3730.0,3728.9,0.216]
[1760698519436,0.219,3729.9,3728.9,0.216]
[1760698519582,0.42066188,3729.8,3728.9,0.216]
[1760698519905,3.10178907,3729.8,3728.9,0.216]
[1760698520090,0.42066188,3729.8,3728.9,0.216]
[1760698520293,0.59586188,3729.8,3728.6,0.2259]
[1760698520472,2.68118079,3729.7,3728.6,0.2259]
[1760698520669,0.59586188,3729.8,3728.2,0.2259]
[1760698520670,2.68177169,3728.9,3728.2,0.2259]
[1760698520903,2.68183567,3728.8,3728.2,0.2259]
[1760698521293,2.68197178,3728.6,3728.0,0.2259]
[1760698521494,0.42076053,3728.7,3728.0,0.2259]
[1760698521696,2.681881,3728.8,3728.0,0.2259]
[1760698521887,2.68213235,3728.4,3728.0,0.2259]
[1760698522089,0.1752,3728.8,3727.7,0.2266]
[1760698522289,0.1752,3728.7,3727.5,0.001]
[1760698522488,2.68269127,3727.6,3727.5,0.001]
[1760698523361,5.14682047,3727.6,3727.5,0.001]
[1760698523725,5.78042047,3727.6,3727.5,0.001]
[1760698523959,3.41882047,3727.6,3727.5,0.001]
[1760698524716,3.46560669,3727.6,3727.5,0.001]
[1760698524916,5.82720669,3727.6,3727.5,0.001]
[1760698525350,3.31657918,3727.2,3727.1,0.001]
[1760698525656,21.98326043,3727.2,3727.1,0.001]
[1760698525856,21.98326043,3727.2,3725.0,0.2259]
[1760698525857,1.728,3727.1,3725.1,0.4734]
[1760698526025,1.728,3726.4,3725.1,0.4734]
[1760698526230,1.728,3726.4,3724.7,0.2266]
[1760698526231,0.3974,3726.3,3724.7,0.2266]
[1760698526438,16.93868125,3725.9,3724.7,0.2266]
[1760698526641,1.728,3725.9,3724.8,0.4734]
[1760698526839,2.68387728,3726.0,3724.8,0.4734]
[1760698527155,0.42111812,3725.9,3724.9,0.02684635]
[1760698527360,0.42111812,3725.9,3725.0,0.81456157]
[1760698527519,0.42111812,3725.9,3725.1,0.2266]
[1760698527719,2.68406812,3725.7,3725.1,0.2266]
[1760698528048,0.63971812,3725.9,3725.1,0.2266]
[1760698528234,0.42111812,3725.9,3725.1,0.2266]
[1760698528443,0.42111812,3725.9,3725.2,0.4734]
[1760698528819,0.42031812,3725.9,3725.2,0.4734]
[1760698529845,0.42031812,3725.9,3724.9,0.001]
[1760698529846,2.68414868,3725.6,3724.9,0.001]
[1760698530149,0.42031812,3725.9,3724.9,0.4744]
[1760698530373,2.68399029,3725.8,3724.9,0.001]
[1760698530530,0.53221036,3725.9,3724.9,0.4744]
[1760698530531,0.42113063,3725.5,3724.9,0.4744]
[1760698530746,0.42113063,3725.5,3724.9,0.001]
[1760698531050,2.68428117,3725.4,3724.9,0.001]
[1760698531239,0.42113063,3725.5,3724.9,0.001]
[1760698531643,2.68456375,3725.0,3724.9,0.001]
[1760698531852,0.90784837,3725.5,3724.9,0.001]
[1760698531853,2.68435669,3725.3,3724.9,0.001]
[1760698532154,2.68436506,3725.3,3724.9,0.001]
[1760698532369,0.42117854,3725.3,3724.9,0.001]
[1760698532569,0.04680817,3725.8,3725.2,0.2266]
[1760698532732,1.728,3726.3,3725.2,0.2266]
[1760698532733,4.41162846,3726.3,3725.2,0.2266]
[1760698533063,2.20874285,3726.3,3725.2,0.2266]
[1760698533229,0.04680342,3726.4,3725.3,0.4734]
[1760698533627,0.1762,3726.3,3724.9,0.001]
[1760698533827,2.68376237,3726.2,3724.9,0.001]
[1760698534135,0.1762,3726.3,3725.0,0.4734]
[1760698534361,0.1762,3726.3,3725.1,0.2266]
[1760698534725,0.36662,3726.3,3725.1,0.2266]
[1760698534962,2.68395863,3725.9,3725.1,0.2266]
[1760698535255,2.68370937,3726.2,3725.1,0.2266]
[1760698535455,2.68377549,3726.1,3725.1,0.2266]
[1760698535629,2.68377549,3726.1,3724.9,0.001]
[1760698535630,2.68405937,3725.7,3724.9,0.001]
[1760698535824,2.68425313,3725.5,3724.9,0.001]
[1760698536058,0.2209,3725.6,3724.9,0.001]
[1760698536426,2.68422055,3725.5,3724.9,0.001]
[1760698536743,2.68421821,3725.5,3724.9,0.001]
[1760698536932,0.2209,3725.6,3724.9,0.001]
[1760698537131,0.42114175,3725.4,3724.9,0.001]
[1760698537971,0.42114175,3725.4,3725.3,0.2266]
[1760698538648,0.42114175,3725.4,3725.0,0.4734]
[1760698538855,0.42114175,3725.4,3724.9,0.001]
[1760698539630,0.42114175,3725.4,3725.0,0.4734]
[1760698539859,0.42114175,3725.4,3725.1,0.2266]
[1760698540061,0.42114175,3725.4,3725.2,0.4734]
[1760698540264,0.42114175,3725.4,3725.1,0.2266]
[1760698540774,0.42114175,3725.4,3724.9,0.001]
[1760698541361,2.68456375,3725.0,3724.9,0.001]
[1760698541559,0.1784,3725.3,3724.9,0.001]
[1760698541927,2.68456375,3725.0,3724.9,0.001]
[1760698542167,0.4211898,3725.3,3724.9,0.001]
[1760698542354,3.10559863,3725.3,3724.9,0.001]
[1760698542556,0.1784,3725.2,3724.9,0.001]
[1760698542760,2.68456375,3725.0,3724.9,0.001]
[1760698542942,3.28142186,3725.0,3724.9,0.001]
[1760698543131,3.45982186,3725.0,3724.9,0.001]
[1760698545063,3.45982186,3725.0,3724.9,0.051]
[1760698545871,5.18782186,3725.0,3724.9,0.051]
[1760698547780,5.60909327,3725.0,3724.9,0.051]
[1760698549232,2.92452952,3725.0,3724.9,0.051]
[1760698549437,0.42127141,3725.0,3724.9,0.051]
[1760698549654,0.0468143,3725.2,3724.9,0.051]
[1760698549655,0.0468143,3725.2,3724.9,0.5119]
[1760698549877,0.0468143,3725.2,3724.9,0.051]
[1760698550169,0.1784,3725.8,3724.9,0.051]
[1760698550345,2.68435034,3725.3,3724.9,0.051]
[1760698550546,2.68430048,3725.4,3724.9,0.051]
[1760698550748,2.68456375,3725.0,3724.9,0.051]
[1760698551270,2.86296375,3725.0,3724.9,0.051]
[1760698552169,3.28420111,3725.0,3724.9,0.051]
[1760698552557,3.28340111,3725.0,3724.9,0.051]
[1760698553043,0.42123736,3725.0,3724.9,0.051]
[1760698553453,3.10580111,3725.0,3724.9,0.051]
[1760698553778,3.5038063,3725.0,3724.9,0.051]
[1760698553975,0.64084255,3725.0,3724.9,0.051]
[1760698554306,3.10580111,3725.0,3724.9,0.051]
[1760698554497,0.04681458,3725.1,3724.9,0.4867]
[1760698554785,2.68415719,3725.6,3724.9,0.4867]
[1760698554985,2.68410567,3725.7,3724.9,0.051]
[1760698555185,0.04680917,3725.7,3724.9,0.051]
[1760698555587,2.73092481,3725.7,3724.9,0.051]
[1760698555788,2.68420872,3725.5,3724.9,0.051]
[1760698556486,2.68427695,3725.4,3724.9,0.051]
[1760698556666,0.04680917,3725.7,3724.9,0.051]
[1760698556667,0.04680917,3725.7,3725.4,0.2181]
[1760698556866,0.002,3726.3,3725.4,0.2181]
[1760698557081,2.68379386,3726.1,3725.4,0.2181]
[1760698557288,2.68385776,3726.0,3725.4,0.2181]
[1760698558056,0.002,3726.3,3725.4,0.2181]
[1760698558380,1.73,3726.3,3725.2,0.4357]
[1760698558762,0.42111742,3726.1,3725.0,0.2181]
[1760698558967,2.68406991,3725.7,3725.0,0.2181]
[1760698559166,0.2315,3725.9,3725.0,0.2181]
[1760698559368,2.68425428,3725.5,3725.0,0.2181]
[1760698559667,2.68432747,3725.4,3724.9,0.051]
[1760698559860,2.68434939,3725.3,3724.9,0.051]
[1760698560086,2.68442548,3725.2,3724.9,0.051]
[1760698560312,2.68456375,3725.0,3724.9,0.051]
[1760698560461,3.2212484,3725.3,3724.9,0.051]
[1760698560674,2.68456375,3725.0,3724.9,0.051]
[1760698561205,2.85116375,3725.0,3724.9,0.051]
[1760698561408,3.66536692,3725.0,3724.9,0.051]
[1760698561594,3.49876692,3725.0,3724.9,0.051]
[1760698562206,5.39336692,3725.0,3724.9,0.051]
[1760698562839,6.4482612,3725.0,3724.9,0.051]
[1760698562981,4.41285206,3724.6,3724.5,0.001]
[1760698563177,4.94970276,3724.6,3724.5,0.001]
[1760698563370,26.34947978,3724.6,3724.5,0.001]
[1760698563572,26.34947978,3724.6,3722.7,0.665]
[1760698563573,5.04674043,3724.2,3722.7,0.665]
[1760698563889,0.6336,3724.0,3722.7,0.665]
[1760698564224,1.728,3723.9,3723.0,0.4384]
[1760698564534,2.68557004,3723.7,3723.1,0.2195]
[1760698564878,2.68564017,3723.6,3722.7,0.665]
[1760698565472,2.68565165,3723.5,3722.7,0.2266]
[1760698565673,0.42136724,3723.5,3722.7,0.2266]
[1760698565907,0.42136724,3723.5,3722.7,0.665]
[1760698566111,18.42441026,3723.5,3722.6,0.001]
[1760698566295,2.68578948,3723.3,3722.6,0.001]
[1760698566614,2.68580903,3723.3,3722.6,0.001]
[1760698567006,2.85560903,3723.3,3722.6,0.001]
[1760698567312,2.68586837,3723.2,3722.6,0.001]
[1760698567617,2.6860059,3723.0,3722.6,0.001]
[1760698568018,20.95764951,3723.0,3722.6,0.001]
[1760698568333,21.37907459,3723.0,3722.6,0.001]
[1760698568736,21.37907459,3723.0,3722.7,0.001]
[1760698569299,23.91047459,3723.0,3722.7,0.001]
[1760698569599,23.74067459,3723.0,3722.7,0.001]
[1760698569805,2.14942508,3723.0,3722.7,0.001]
[1760698571033,4.83543098,3723.0,3722.7,0.001]
[1760698571905,2.14942508,3723.0,3722.7,0.001]
[1760698572736,0.42142508,3723.0,3722.9,0.4394]
[1760698572935,0.04683782,3723.3,3722.9,0.4394]
[1760698573118,0.04683782,3723.3,3723.2,0.2195]
[1760698573318,0.04683782,3723.3,3723.2,3.26180722]
[1760698573518,0.002,3725.0,3723.2,3.26180722]
[1760698573519,0.002,3725.0,3723.4,2.68566625]
[1760698573725,0.002,3725.0,3723.3,0.4384]
[1760698573941,2.68489875,3724.6,3723.3,0.4384]
[1760698574114,2.68479717,3724.7,3723.3,0.4384]
[1760698574456,1.728,3724.8,3723.4,0.33437545]
[1760698574611,1.728,3724.8,3723.3,0.4384]
[1760698574612,1.728,3724.8,3723.3,3.12416735]
[1760698574813,0.002,3725.0,3723.4,0.46525717]
[1760698575013,0.002,3725.0,3723.4,0.4384]
[1760698575215,0.002,3725.0,3724.9,0.2195]
[1760698575561,0.002,3725.0,3723.9,2.68533707]
[1760698575718,0.002,3725.0,3724.0,0.26853371]
[1760698576132,0.002,3725.0,3724.1,0.6579]
[1760698576369,0.0012,3725.0,3724.1,0.6579]
[1760698576528,0.0012,3725.0,3724.4,0.6336]
[1760698576724,0.0012,3725.0,3724.2,0.4652514]
[1760698576931,0.0012,3725.0,3724.4,3.31853561]
[1760698577164,0.0012,3725.0,3724.3,0.4384]
[1760698577689,0.0012,3725.0,3724.1,0.2195]
[1760698577690,2.9050529,3724.9,3724.1,0.2195]
[1760698577838,2.68480389,3724.7,3724.1,0.2195]
[1760698578032,0.2204,3724.9,3724.1,0.2195]
[1760698578229,2.6847146,3724.8,3724.1,0.2195]
[1760698578428,3.26598289,3724.8,3724.1,0.2195]
[1760698578629,0.58126829,3724.8,3724.1,0.2195]
[1760698578830,2.68577171,3725.0,3724.1,0.2195]
[1760698579137,0.0012,3725.0,3724.1,0.2195]
[1760698579440,0.0012,3725.0,3724.2,0.4384]
[1760698580064,2.68463582,3724.9,3724.2,0.4384]
[1760698580242,0.0012,3725.0,3724.2,0.4384]
[1760698580650,2.68577511,3725.0,3724.2,0.4384]
[1760698580966,0.0012,3725.0,3724.2,0.4384]
[1760698581136,0.0012,3725.0,3724.1,0.2195]
[1760698581137,0.2204,3724.9,3724.1,0.2195]
[1760698581334,2.68478677,3724.7,3723.8,0.4384]
[1760698581533,2.6848569,3724.6,3723.8,0.4384]
[1760698581734,1.728,3724.5,3723.8,0.4384]
[1760698582075,1.728,3724.6,3723.8,0.4384]
[1760698582363,0.04681758,3724.9,3724.5,0.2176]
[1760698582561,0.0012,3725.0,3723.2,0.2195]
[1760698582562,0.0012,3725.0,3724.2,0.2176]
[1760698582739,0.0012,3725.0,3723.9,0.4627]
[1760698582740,2.68478333,3724.7,3723.9,0.4627]
[1760698582942,2.6847079,3724.8,3723.9,0.4627]
[1760698583267,2.68479344,3724.7,3723.4,0.4627]
[1760698583489,2.6854408,3723.8,3723.2,0.2195]
[1760698583649,18.00304302,3724.5,3723.0,0.2195]
[1760698583650,1.9426,3723.9,3723.0,0.2195]
[1760698583848,0.2146,3723.9,3723.0,0.2195]
[1760698584048,1.728,3723.9,3723.0,0.2195]
[1760698584248,0.04682412,3724.3,3723.0,0.2195]
[1760698584564,1.728,3723.9,3723.0,0.2195]
[1760698584759,1.728,3724.0,3723.1,0.4627]
[1760698585083,3.10659615,3724.0,3723.1,0.4627]
[1760698585290,0.42130338,3724.0,3723.1,0.4627]
[1760698586098,3.10660953,3724.0,3723.1,0.82139327]
[1760698586249,3.10660953,3724.0,3723.0,0.2195]
[1760698586451,2.90040204,3723.9,3723.0,0.2195]
[1760698586652,1.728,3723.9,3723.0,0.2195]
[1760698587061,4.41337811,3723.9,3723.4,0.001]
[1760698587271,0.2334,3723.8,3723.4,0.001]
[1760698587469,3.13396271,3723.9,3723.4,0.001]
[1760698587678,0.4486,3723.9,3723.4,0.001]
[1760698587984,0.2152,3723.9,3723.4,0.001]
[1760698588190,0.2334,3723.8,3723.4,0.001]
[1760698588353,2.68564522,3723.5,3723.4,0.001]
[1760698588753,2.91904522,3723.5,3723.4,0.001]
[1760698588955,3.3403999,3723.5,3723.4,0.001]
[1760698589890,23.07144292,3723.5,3723.4,0.001]
[1760698590491,4.41364522,3723.5,3723.4,0.001]
[1760698590983,1.728,3723.5,3723.4,0.001]
[1760698591148,4.41364522,3723.5,3723.4,0.001]
[1760698591351,4.64704522,3723.5,3723.4,0.001]
[1760698591584,5.42053609,3723.5,3723.4,0.001]
[1760698591786,2.50149087,3723.5,3723.4,0.001]
[1760698591953,5.18713609,3723.5,3723.4,0.001]
[1760698592153,4.41364522,3723.5,3723.4,0.001]
[1760698594504,0.04683288,3723.6,3723.4,0.001]
[1760698594667,2.6852309,3724.1,3723.4,0.4637]
[1760698594877,0.4213881,3724.2,3723.4,0.4637]
[1760698595166,2.68528464,3724.0,3723.4,0.4637]
[1760698595371,0.0012,3725.0,3723.5,0.02685645]
[1760698595571,2.68579478,3725.0,3723.6,0.4627]
[1760698595886,2.684681,3724.9,3723.6,0.4627]
[1760698596075,0.42124116,3724.7,3723.7,0.31493373]
[1760698596257,0.42124116,3724.7,3723.7,0.4627]
[1760698597492,3.10602562,3724.7,3723.7,0.4627]
[1760698597795,0.42124116,3724.7,3723.7,0.4627]
[1760698599211,2.68489784,3724.6,3723.7,0.4627]
[1760698599377,3.10607768,3724.7,3723.7,0.4627]
[1760698599776,0.42124116,3724.7,3723.7,0.4627]
[1760698600092,0.42044116,3724.7,3723.7,0.4627]
[1760698600287,0.42044116,3724.7,3723.7,0.77764033]
[1760698600489,0.42044116,3724.7,3723.7,0.4627]
[1760698600682,0.42044116,3724.7,3723.4,0.001]
[1760698601006,0.42044116,3724.7,3723.4,0.4637]
[1760698601007,2.68485206,3724.6,3723.4,0.4637]
[1760698601197,2.38184116,3724.7,3723.4,0.4637]
[1760698601396,2.68491435,3724.6,3723.4,0.4637]
[1760698601607,2.68500069,3724.4,3723.4,0.4637]
[1760698601776,2.685089,3724.3,3723.4,0.4637]
[1760698601976,0.2334,3724.3,3723.4,0.001]
[1760698602183,18.00304302,3724.0,3723.4,0.001]
[1760698602379,20.90388824,3723.5,3723.4,0.001]
[1760698602928,3.13424522,3723.5,3723.4,0.001]
[1760698603133,1.728,3723.6,3723.4,0.001]
[1760698603430,2.68564522,3723.5,3723.4,0.001]
[1760698604308,4.64704522,3723.5,3723.4,0.001]
[1760698604815,4.41364522,3723.5,3723.4,0.001]
[1760698605013,5.42061774,3723.5,3723.4,0.001]
[1760698605818,1.728,3723.5,3723.4,0.001]
[1760698606196,4.41364522,3723.5,3723.4,0.001]
[1760698606527,4.64704522,3723.5,3723.4,0.001]
[1760698606938,22.65008824,3723.5,3723.4,0.001]
[1760698607729,4.41364522,3723.5,3723.4,0.001]
[1760698607924,1.728,3723.5,3723.4,0.001]
[1760698608145,5.42060326,3723.5,3723.4,0.001]
[1760698608436,5.18720326,3723.5,3723.4,0.001]
[1760698608599,4.41364522,3723.5,3723.4,0.001]
[1760698611737,4.64704522,3723.5,3723.4,0.001]
[1760698613106,4.6938811,3723.5,3723.4,0.001]
[1760698613312,4.4604811,3723.5,3723.4,0.001]
[1760698613746,4.6938811,3723.5,3723.4,0.001]
[1760698614057,5.49548189,3723.5,3723.4,0.001]
[1760698614435,5.26208189,3723.5,3723.4,0.001]
[1760698616034,5.49548189,3723.5,3723.4,0.001]
[1760698616359,5.26208189,3723.5,3723.4,0.001]
[1760698617056,5.49548189,3723.5,3723.4,0.001]
[1760698618561,0.04683588,3723.5,3723.4,0.001]
[1760698618858,4.6938811,3723.5,3723.4,0.001]
[1760698619155,4.6938811,3723.5,3723.4,10.001]
[1760698619156,4.4604811,3723.5,3723.4,10.001]
[1760698620336,4.6938811,3723.5,3723.4,10.001]
[1760698621284,4.4604811,3723.5,3723.4,10.001]
[1760698622083,4.4604811,3723.5,3723.4,11.02417]
[1760698622084,1.77483588,3723.5,3723.4,11.02417]
[1760698622271,0.002,3725.8,3723.4,11.49497]
[1760698622590,2.68621108,3725.5,3724.6,0.2307]
[1760698622789,0.002,3725.5,3724.6,0.2307]
[1760698622961,0.002,3725.5,3724.6,0.7015]
[1760698623163,18.00504302,3725.1,3724.2,0.2307]
[1760698623487,0.002,3725.1,3724.2,0.2307]
[1760698623687,0.002,3725.1,3724.3,0.4708]
[1760698623883,0.0012,3724.7,3724.3,0.4708]
[1760698624083,0.0012,3724.7,3724.3,3.15580123]
[1760698624289,0.0012,3724.7,3724.4,0.6071709]
[1760698624496,0.0012,3724.7,3724.4,0.4708]
[1760698624785,0.0012,3724.7,3724.2,0.2307]
[1760698624976,0.0012,3724.7,3724.3,0.4708]
[1760698625181,0.0012,3724.7,3724.2,0.7015]
[1760698625496,0.0012,3724.7,3724.3,0.4708]
[1760698626093,0.0012,3724.7,3724.4,0.4708]
[1760698626301,0.002,3725.1,3724.4,0.4708]
[1760698626302,0.002,3725.1,3724.5,0.66044924]
[1760698626525,0.002,3725.1,3724.6,0.28592492]
[1760698626797,0.002,3725.1,3724.6,3.15564045]
[1760698626965,0.002,3725.1,3724.9,2.68463582]
[1760698627174,0.002,3725.1,3724.7,0.4708]
[1760698627366,0.002,3725.1,3724.8,0.49764707]
[1760698627567,0.002,3725.1,3724.8,0.4708]
[1760698627765,0.002,3725.1,3724.3,0.6336]
[1760698627971,0.002,3725.4,3724.9,11.97907482]
[1760698628192,0.002,3725.8,3725.7,5.04565937]
[1760698628359,0.2156,3728.3,3726.4,0.6336]
[1760698628560,0.04679398,3727.0,3726.5,0.4708]
[1760698628759,1.728,3727.8,3726.6,0.4708]
[1760698628971,1.728,3727.2,3725.9,0.4708]
[1760698629171,17.00310624,3727.3,3725.9,0.4708]
[1760698629375,1.728,3726.6,3725.9,0.4708]
[1760698629571,2.6834215,3726.6,3725.5,0.4708]
[1760698629775,1.728,3726.4,3725.5,0.4708]
[1760698630092,1.728,3726.2,3725.5,0.4708]
[1760698630259,2.43748637,3726.4,3725.5,0.4708]
[1760698630459,0.70948637,3726.4,3725.5,0.4708]
[1760698630695,3.10468226,3726.3,3725.5,0.4708]
[1760698630859,2.68362754,3726.3,3725.5,0.4708]
[1760698631285,1.728,3726.4,3725.5,0.4708]
[1760698631881,2.68355808,3726.4,3725.5,0.4708]
[1760698632086,0.44115581,3726.3,3725.5,0.4708]
[1760698632899,2.68338788,3726.7,3725.5,0.4708]
[1760698633193,1.728,3726.8,3725.6,0.66044131]
[1760698633395,0.2342,3727.1,3725.6,3.34451731]
[1760698633602,0.2342,3727.1,3725.7,0.4708]
[1760698633799,2.68330873,3726.8,3725.7,0.4708]
[1760698633961,2.68337074,3726.7,3725.7,0.4708]
[1760698634378,1.728,3726.7,3725.7,0.4708]
[1760698634564,2.68320721,3726.9,3725.7,0.4708]
[1760698634762,2.6832778,3726.8,3725.7,0.86301983]
[1760698635293,2.68334694,3726.7,3725.7,0.86301983]
[1760698635791,2.68365101,3726.3,3725.3,0.6889]
[1760698636013,0.2218,3726.7,3725.3,0.6889]
[1760698636316,1.728,3726.5,3725.4,0.4708]
[1760698636484,1.728,3726.6,3725.4,0.4708]
[1760698636685,2.68362719,3726.3,3725.4,0.4708]
[1760698637110,0.2218,3726.7,3725.4,0.4708]
[1760698637415,0.42104273,3726.6,3725.5,0.33732727]
[1760698637712,2.68358951,3726.4,3725.4,0.4708]
[1760698638014,1.728,3726.3,3725.4,0.4708]
[1760698638222,1.728,3726.5,3725.4,0.4708]
[1760698638410,2.68377876,3726.1,3725.4,0.4708]
[1760698638720,2.68364312,3726.3,3725.3,0.2181]
[1760698638919,1.9498,3726.4,3725.3,0.2181]
[1760698639214,1.9498,3726.4,3725.4,10.0]
[1760698639412,1.9498,3726.4,3725.5,1.02181]
[1760698639614,1.728,3726.5,3725.5,1.02181]
[1760698639819,1.728,3726.3,3725.5,1.02181]
[1760698640219,2.68350912,3726.5,3725.5,1.02181]
[1760698640420,1.728,3726.4,3725.5,1.02181]
[1760698640616,2.68356528,3726.4,3725.5,1.02181]
[1760698640816,1.728,3726.2,3725.5,1.02181]
[1760698641119,1.728,3726.4,3725.5,1.02181]
[1760698641297,1.728,3726.3,3725.6,1.171071]
[1760698641497,0.002,3726.7,3725.6,1.171071]
[1760698641821,0.002,3726.7,3725.7,0.47864059]
[1760698642026,0.002,3726.7,3725.7,3.16269179]
[1760698642318,0.002,3726.7,3725.8,0.43337628]
[1760698642827,0.002,3726.7,3725.7,0.4518]
[1760698643122,0.002,3726.7,3725.4,10.0]
[1760698643323,2.68352674,3726.5,3725.4,10.0]
[1760698643623,1.728,3726.4,3725.4,10.0]
[1760698643809,1.728,3726.5,3725.4,10.0]
[1760698644016,2.68363547,3726.3,3725.5,1.08035]
[1760698644416,2.6836964,3726.3,3725.5,1.08035]
[1760698644610,2.68377791,3726.1,3725.5,1.08035]
[1760698644920,2.68383269,3726.1,3725.5,1.08035]
[1760698645114,2.68371057,3726.2,3725.5,1.08035]
[1760698645317,1.728,3726.1,3725.5,1.08035]
[1760698645522,2.6837901,3726.1,3725.5,1.08035]
[1760698645824,2.68383313,3726.1,3725.5,1.08035]
[1760698646130,2.68383313,3726.1,3725.4,10.0]
[1760698646131,2.68416643,3725.6,3725.4,10.0]
[1760698646427,2.68416643,3725.6,3725.4,10.89]
[1760698646594,0.2166,3725.5,3725.4,10.89]
[1760698646920,0.442,3725.5,3725.4,10.89]
[1760698647259,0.42111213,3725.8,3725.4,10.89]
[1760698647528,3.10510998,3725.8,3725.4,10.89]
[1760698647694,3.10510998,3725.8,3725.5,0.2127]
[1760698647695,0.42031213,3725.8,3725.5,0.2127]
[1760698647889,0.42031213,3725.8,3725.4,11.979]
[1760698649012,2.68406071,3725.7,3725.4,10.89]
[1760698649222,3.32091831,3725.8,3725.4,10.89]
[1760698649396,3.54631831,3725.8,3725.4,10.89]
[1760698649797,2.68406111,3725.7,3725.4,10.89]
[1760698650933,2.90945937,3725.7,3725.4,10.89]
[1760698651377,0.42031213,3725.8,3725.4,10.89]
[1760698651555,2.68420346,3725.5,3725.4,10.89]